bitfinex-derivatives/quotes_BTCF0:USTF0_20241010
["timestamp","ask_amount","ask_price","bid_price","bid_amount"]
[1728601426129,0.4068968,60212.0,60211.0,0.001]
[1728601426331,0.323799,60212.0,60211.0,0.001]
[1728601426630,0.453799,60212.0,60211.0,0.001]
[1728601427035,0.4807481,60212.0,60211.0,0.001]
[1728601429529,0.48074852,60212.0,60211.0,0.001]
[1728601432030,0.35074852,60212.0,60211.0,0.001]
[1728601433133,0.323799,60212.0,60211.0,0.001]
[1728601434128,0.323799,60212.0,60211.0,0.0758]
[1728601434539,0.323799,60212.0,60211.0,0.12523266]
[1728601434935,0.323799,60212.0,60211.0,0.0758]
[1728601435242,0.323799,60212.0,60211.0,0.12527025]
[1728601435538,0.323799,60212.0,60211.0,0.0758]
[1728601436237,0.684599,60212.0,60211.0,0.0732]
[1728601437937,0.323799,60212.0,60211.0,0.0732]
[1728601438238,0.684599,60212.0,60211.0,0.0732]
[1728601438442,0.684599,60212.0,60211.0,0.12267025]
[1728601438635,0.554599,60212.0,60211.0,0.12267025]
[1728601438836,0.323799,60212.0,60211.0,0.12267025]
[1728601439033,0.019,60212.0,60211.0,0.26911298]
[1728601439232,0.019,60212.0,60211.0,0.2032]
[1728601439753,0.019,60212.0,60211.0,0.31752494]
[1728601440334,0.019,60212.0,60211.0,0.235]
[1728601440533,0.019,60212.0,60211.0,0.4251159]
[1728601440734,0.019,60212.0,60211.0,0.31744784]
[1728601440939,0.019,60212.0,60211.0,0.235]
[1728601441437,0.019,60212.0,60211.0,1.46324]
[1728601442042,0.019,60212.0,60211.0,1.33324]
[1728601442230,0.019,60212.0,60211.0,0.73324]
[1728601442639,0.019,60212.0,60211.0,0.235]
[1728601443133,0.019,60212.0,60211.0,0.28445275]
[1728601443440,0.019,60212.0,60211.0,0.235]
[1728601443639,0.019,60212.0,60211.0,0.28444578]
[1728601444042,0.019,60212.0,60211.0,0.15444578]
[1728601444234,0.019,60212.0,60211.0,0.235]
[1728601444440,0.019,60212.0,60211.0,0.73324]
[1728601444635,0.019,60212.0,60211.0,0.235]
[1728601445142,0.019,60212.0,60211.0,0.73324]
[1728601445330,0.019,60212.0,60211.0,0.235]
[1728601445534,0.019,60212.0,60211.0,0.73324]
[1728601446237,0.019,60212.0,60211.0,0.235]
[1728601450851,0.019,60212.0,60211.0,0.5958]
[1728601458551,0.019,60212.0,60211.0,0.4658]
[1728601459053,0.019,60212.0,60211.0,0.5958]
[1728601459356,0.223799,60212.0,60211.0,0.0732]
[1728601459740,0.223799,60212.0,60211.0,0.13916032]
[1728601460745,0.223799,60212.0,60211.0,0.0732]
[1728601461348,0.019,60212.0,60211.0,0.0732]
[1728601462139,0.019,60212.0,60211.0,0.13918593]
[1728601462541,0.019,60212.0,60211.0,0.0732]
[1728601465847,0.019,60212.0,60211.0,0.13919356]
[1728601466549,0.019,60212.0,60211.0,0.0732]
[1728601466944,0.019,60212.0,60211.0,0.13923481]
[1728601467539,0.019,60212.0,60211.0,0.0732]
[1728601468349,0.15782701,60224.0,60211.0,0.31088919]
[1728601468645,0.15782701,60224.0,60223.0,0.074785]
[1728601468646,0.25782701,60224.0,60223.0,0.074785]
[1728601469053,0.1,60224.0,60223.0,0.204785]
[1728601469246,0.10760678,60225.0,60224.0,0.074784]
[1728601469247,0.02456477,60225.0,60224.0,0.074784]
[1728601469558,0.08304201,60231.0,60229.0,0.074778]
[1728601469848,0.15781701,60232.0,60229.0,0.074778]
[1728601470255,0.074775,60232.0,60229.0,0.1408201]
[1728601470453,0.074775,60232.0,60229.0,0.074778]
[1728601470755,0.301171,60235.0,60229.0,0.074778]
[1728601470947,0.301171,60235.0,60229.0,0.1408201]
[1728601471147,0.074773,60233.0,60229.0,0.1428201]
[1728601471346,0.204776,60231.0,60229.0,0.076778]
[1728601471842,0.204776,60231.0,60229.0,0.078778]
[1728601472245,0.204776,60231.0,60229.0,0.076778]
[1728601472448,0.13,60231.0,60229.0,0.077778]
[1728601472645,0.204776,60231.0,60229.0,0.077778]
[1728601473551,0.02669122,60230.0,60229.0,0.079778]
[1728601473746,0.00249119,60230.0,60229.0,0.079778]
[1728601475566,0.00249119,60230.0,60229.0,0.12918691]
[1728601476755,0.07726819,60230.0,60229.0,0.12918691]
[1728601477458,0.07726819,60230.0,60229.0,0.079778]
[1728601477657,0.10161459,60230.0,60229.0,0.079778]
[1728601478754,0.02683759,60230.0,60229.0,0.079778]
[1728601479154,0.13683759,60230.0,60229.0,0.079778]
[1728601483274,0.13683759,60230.0,60229.0,0.079378]
[1728601484658,0.1343464,60230.0,60229.0,0.079378]
[1728601492071,0.2091234,60230.0,60229.0,0.079378]
[1728601492372,0.2091234,60230.0,60229.0,0.005]
[1728601492872,0.2091234,60230.0,60229.0,0.079778]
[1728601493379,0.2101234,60230.0,60229.0,0.075778]
[1728601493575,0.2101234,60230.0,60229.0,0.205778]
[1728601493576,0.1353464,60230.0,60229.0,0.205778]
[1728601494873,0.1343464,60230.0,60229.0,0.207778]
[1728601495069,0.1393464,60230.0,60229.0,0.206778]
[1728601495682,0.1343464,60230.0,60229.0,0.208778]
[1728601498475,0.1343464,60230.0,60229.0,0.078778]
[1728601500184,0.0243464,60230.0,60229.0,0.078778]
[1728601500387,0.074772,60234.0,60229.0,0.078778]
[1728601500687,0.074772,60234.0,60233.0,0.074773]
[1728601500688,0.174772,60234.0,60233.0,0.074773]
[1728601501883,0.180772,60234.0,60233.0,0.074773]
[1728601503393,0.20606445,60234.0,60233.0,0.074773]
[1728601511493,0.13129245,60234.0,60233.0,0.074773]
[1728601514902,0.13129245,60234.0,60233.0,0.14082141]
[1728601515499,0.13129245,60234.0,60233.0,0.074773]
[1728601516194,0.21433446,60234.0,60233.0,0.074773]
[1728601516596,0.03129245,60234.0,60233.0,0.14082141]
[1728601516897,0.03129245,60234.0,60233.0,0.074773]
[1728601521099,0.03129245,60234.0,60233.0,0.14078788]
[1728601523495,0.03129245,60234.0,60233.0,0.15732563]
[1728601526091,0.03129245,60234.0,60233.0,0.074773]
[1728601526498,0.03129245,60234.0,60233.0,0.204773]
[1728601526705,0.074753,60249.0,60233.0,0.26804058]
[1728601526904,0.074753,60249.0,60248.0,0.074754]
[1728601526905,0.194753,60249.0,60248.0,0.074754]
[1728601528305,0.199753,60249.0,60248.0,0.074754]
[1728601528808,0.199753,60249.0,60248.0,0.075754]
[1728601529505,0.213753,60249.0,60248.0,0.075754]
[1728601530097,0.213753,60249.0,60248.0,0.076754]
[1728601530606,0.3404287,60249.0,60248.0,0.076754]
[1728601531806,0.24068491,60249.0,60248.0,0.076754]
[1728601532916,0.3404287,60249.0,60248.0,0.076754]
[1728601533202,0.24068491,60249.0,60248.0,0.076754]
[1728601536809,0.24068491,60249.0,60248.0,0.002]
[1728601537325,0.3404287,60249.0,60248.0,0.002]
[1728601538508,0.29670773,60249.0,60248.0,0.002]
[1728601538905,1.03670773,60249.0,60248.0,0.002]
[1728601540513,0.953753,60249.0,60248.0,0.002]
[1728601541013,1.314553,60249.0,60248.0,0.002]
[1728601541211,1.34148622,60249.0,60248.0,0.002]
[1728601544822,1.47148622,60249.0,60248.0,0.002]
[1728601545808,0.73148622,60249.0,60248.0,0.002]
[1728601546007,0.65757542,60249.0,60248.0,0.076754]
[1728601546211,0.65758872,60249.0,60248.0,0.076754]
[1728601546407,0.213753,60249.0,60248.0,0.48703591]
[1728601546914,0.213753,60249.0,60248.0,0.437554]
[1728601547112,0.213753,60249.0,60248.0,0.48703759]
[1728601547622,0.213753,60249.0,60248.0,0.437554]
[1728601548215,0.213753,60249.0,60248.0,0.567554]
[1728601549017,0.213753,60249.0,60248.0,0.48703759]
[1728601549219,0.213753,60249.0,60248.0,0.437554]
[1728601549417,0.213753,60249.0,60248.0,0.48703759]
[1728601550816,0.213753,60249.0,60248.0,0.437554]
[1728601551015,0.093753,60249.0,60248.0,0.437554]
[1728601551216,0.213753,60249.0,60248.0,0.437554]
[1728601553521,0.24068349,60249.0,60248.0,0.437554]
[1728601554621,0.23068349,60249.0,60248.0,0.437554]
[1728601557217,0.23068347,60249.0,60248.0,0.437554]
[1728601559117,0.23068347,60249.0,60248.0,0.076754]
[1728601560619,0.203753,60249.0,60248.0,0.076754]
[1728601561816,0.943753,60249.0,60248.0,0.076754]
[1728601568722,0.97068341,60249.0,60248.0,0.076754]
[1728601569228,0.15593041,60249.0,60248.0,0.076754]
[1728601569522,0.15593041,60249.0,60248.0,0.206754]
[1728601569723,0.15592918,60249.0,60248.0,0.206754]
[1728601569927,0.21201162,60249.0,60248.0,0.206754]
[1728601570126,0.21201513,60249.0,60248.0,0.206754]
[1728601570319,0.15592887,60249.0,60248.0,0.206754]
[1728601570521,0.2120108,60249.0,60248.0,0.206754]
[1728601573428,0.21202112,60249.0,60248.0,0.206754]
[1728601574130,0.129,60249.0,60248.0,0.567554]
[1728601575122,0.15592879,60249.0,60248.0,0.567554]
[1728601575825,0.15592879,60249.0,60248.0,0.63352988]
[1728601575826,0.129,60249.0,60248.0,0.63352988]
[1728601576220,0.129,60249.0,60248.0,0.50352988]
[1728601576524,0.203753,60249.0,60248.0,0.50352988]
[1728601578523,0.564553,60249.0,60248.0,0.12625182]
[1728601578725,0.203753,60249.0,60248.0,0.12625182]
[1728601579121,0.203753,60249.0,60248.0,0.076754]
[1728601579527,0.28679326,60249.0,60248.0,0.002]
[1728601583830,0.23068415,60249.0,60248.0,0.002]
[1728601585132,0.23068415,60249.0,60248.0,0.076754]
[1728601585333,0.97068415,60249.0,60248.0,0.076754]
[1728601588249,1.10068415,60249.0,60248.0,0.076754]
[1728601588432,1.10068416,60249.0,60248.0,0.076754]
[1728601590750,1.15678523,60249.0,60248.0,0.076754]
[1728601592046,0.95203223,60249.0,60248.0,0.076754]
[1728601592247,0.129,60249.0,60248.0,0.567554]
[1728601592547,0.129,60249.0,60248.0,0.50352988]
[1728601594353,0.125,60249.0,60248.0,0.50352988]
[1728601596857,0.015,60249.0,60248.0,0.50352988]
[1728601597050,0.015,60249.0,60248.0,0.437554]
[1728601597451,0.015,60249.0,60248.0,0.567554]
[1728601599357,0.015,60249.0,60248.0,0.437554]
[1728601599954,0.135,60249.0,60248.0,0.437554]
[1728601600254,0.339753,60249.0,60248.0,0.002]
[1728601600565,0.209753,60249.0,60248.0,0.002]
[1728601602563,0.209753,60249.0,60248.0,0.076754]
[1728601602762,0.339753,60249.0,60248.0,0.076754]
[1728601605951,0.36668358,60249.0,60248.0,0.076754]
[1728601612861,0.36668358,60249.0,60248.0,0.12626005]
[1728601612862,0.339753,60249.0,60248.0,0.12626005]
[1728601613962,0.339753,60249.0,60248.0,0.12627781]
[1728601614158,0.339753,60249.0,60248.0,0.12627924]
[1728601616268,0.209753,60249.0,60248.0,0.12627924]
[1728601616961,0.209753,60249.0,60248.0,0.076754]
[1728601616962,0.135,60249.0,60248.0,0.076754]
[1728601617762,0.135,60249.0,60248.0,0.12627834]
[1728601618365,0.135,60249.0,60248.0,0.076754]
[1728601619159,0.135,60249.0,60248.0,0.12628058]
[1728601619364,0.135,60249.0,60248.0,0.076754]
[1728601620863,0.16193031,60249.0,60248.0,0.076754]
[1728601622862,0.16193031,60249.0,60248.0,0.437554]
[1728601623064,0.135,60249.0,60248.0,0.437554]
[1728601623568,0.16192856,60249.0,60248.0,0.437554]
[1728601623874,0.135,60249.0,60248.0,0.437554]
[1728601624676,0.16192876,60249.0,60248.0,0.437554]
[1728601627572,0.16192876,60249.0,60248.0,0.076754]
[1728601627968,0.135,60249.0,60248.0,0.206754]
[1728601628180,0.015,60249.0,60248.0,0.206754]
[1728601630067,0.015,60249.0,60248.0,0.076754]
[1728601631678,0.10212878,60262.0,60248.0,1.28053649]
[1728601631679,0.08305607,60258.0,60248.0,1.28053649]
[1728601631881,0.21554617,60262.0,60257.0,0.4908]
[1728601632090,0.21554617,60262.0,60261.0,0.074738]
[1728601632091,0.0024901,60262.0,60261.0,0.074738]
[1728601632579,0.1324901,60262.0,60261.0,0.074738]
[1728601632884,0.15754759,60262.0,60261.0,0.074738]
[1728601633676,0.15754759,60262.0,60261.0,0.12419216]
[1728601633976,0.15754759,60262.0,60261.0,0.074738]
[1728601634578,0.15854759,60262.0,60261.0,0.075738]
[1728601635369,0.16454759,60262.0,60261.0,0.076738]
[1728601640689,0.03454759,60262.0,60261.0,0.076738]
[1728601642287,0.14454759,60262.0,60261.0,0.076738]
[1728601642792,0.03205749,60262.0,60261.0,0.076738]
[1728601643087,0.02505951,60266.0,60262.0,0.074737]
[1728601643281,0.08282559,60272.0,60265.0,0.565533]
[1728601643483,0.03,60272.0,60271.0,0.13]
[1728601643686,0.03,60272.0,60271.0,0.204726]
[1728601644685,0.03,60272.0,60271.0,0.205726]
[1728601644686,0.031,60272.0,60271.0,0.205726]
[1728601645077,0.031,60272.0,60271.0,0.075726]
[1728601645281,0.121,60272.0,60271.0,0.075726]
[1728601646383,0.121,60272.0,60271.0,0.076726]
[1728601653301,0.195725,60272.0,60271.0,0.076726]
[1728601653485,0.258925,60272.0,60271.0,0.076726]
[1728601654701,0.258925,60272.0,60271.0,0.002]
[1728601654899,0.421925,60272.0,60271.0,0.002]
[1728601655294,0.50469181,60272.0,60271.0,0.002]
[1728601655498,0.291925,60272.0,60271.0,0.002]
[1728601655698,0.551925,60272.0,60271.0,0.002]
[1728601656205,0.63473482,60272.0,60271.0,0.002]
[1728601656607,0.551925,60272.0,60271.0,0.002]
[1728601656808,0.57884761,60272.0,60271.0,0.002]
[1728601658511,0.93964761,60272.0,60271.0,0.002]
[1728601658713,1.03928629,60272.0,60271.0,0.002]
[1728601659513,0.93964761,60272.0,60271.0,0.002]
[1728601660901,0.80964761,60272.0,60271.0,0.002]
[1728601662915,0.44884761,60272.0,60271.0,0.002]
[1728601664104,0.80964761,60272.0,60271.0,0.002]
[1728601664511,0.80964761,60272.0,60271.0,0.076726]
[1728601664512,0.22264761,60272.0,60271.0,0.076726]
[1728601664717,0.35264761,60272.0,60271.0,0.076726]
[1728601665413,0.45217851,60272.0,60271.0,0.076726]
[1728601665610,0.4521829,60272.0,60271.0,0.076726]
[1728601665806,0.43559262,60272.0,60271.0,0.076726]
[1728601666008,0.76947152,60272.0,60271.0,0.076726]
[1728601666208,0.71344642,60272.0,60271.0,0.076726]
[1728601666608,0.58344642,60272.0,60271.0,0.076726]
[1728601666916,0.58344642,60272.0,60271.0,0.002]
[1728601667115,0.71344642,60272.0,60271.0,0.002]
[1728601670918,0.84344642,60272.0,60271.0,0.002]
[1728601671113,0.71344642,60272.0,60271.0,0.002]
[1728601671515,0.84344642,60272.0,60271.0,0.002]
[1728601672118,0.35264642,60272.0,60271.0,0.002]
[1728601672314,0.71344642,60272.0,60271.0,0.002]
[1728601673425,0.81298171,60272.0,60271.0,0.002]
[1728601673625,0.84344642,60272.0,60271.0,0.002]
[1728601673819,0.88831229,60272.0,60271.0,0.002]
[1728601675122,0.52751229,60272.0,60271.0,0.002]
[1728601675321,0.88831229,60272.0,60271.0,0.002]
[1728601676923,0.816525,60272.0,60271.0,0.002]
[1728601677123,0.88831925,60272.0,60271.0,0.002]
[1728601677318,0.75831925,60272.0,60271.0,0.002]
[1728601677522,0.39751925,60272.0,60271.0,0.076726]
[1728601677724,0.26751925,60272.0,60271.0,0.076726]
[1728601678629,0.39751925,60272.0,60271.0,0.076726]
[1728601680624,0.75831925,60272.0,60271.0,0.076726]
[1728601680925,0.71344691,60272.0,60271.0,0.076726]
[1728601681526,0.35264691,60272.0,60271.0,0.076726]
[1728601682728,0.27792191,60272.0,60271.0,0.076726]
[1728601683731,0.121,60272.0,60271.0,0.206726]
[1728601685134,0.121,60272.0,60271.0,0.076726]
[1728601686431,0.121,60272.0,60271.0,0.206726]
[1728601686733,0.001,60272.0,60271.0,0.206726]
[1728601688843,0.001,60272.0,60271.0,0.25620789]
[1728601689140,0.001,60272.0,60271.0,0.61700789]
[1728601690740,0.001,60272.0,60271.0,0.25620789]
[1728601690941,0.001,60272.0,60271.0,0.61700789]
[1728601693741,0.111,60272.0,60271.0,0.61700789]
[1728601693927,0.001,60272.0,60271.0,0.48700789]
[1728601694934,0.231,60272.0,60271.0,0.48700789]
[1728601695139,0.305725,60272.0,60271.0,0.076726]
[1728601695338,0.38867174,60272.0,60271.0,0.076726]
[1728601695538,0.33264644,60272.0,60271.0,0.076726]
[1728601696448,0.43218383,60272.0,60271.0,0.076726]
[1728601696832,0.43218135,60272.0,60271.0,0.076726]
[1728601697037,0.33264644,60272.0,60271.0,0.076726]
[1728601697237,0.43218135,60272.0,60271.0,0.076726]
[1728601697638,0.33264644,60272.0,60271.0,0.076726]
[1728601698438,0.43218135,60272.0,60271.0,0.076726]
[1728601698746,0.33264527,60272.0,60271.0,0.076726]
[1728601699644,0.43218018,60272.0,60271.0,0.076726]
[1728601699948,0.33264527,60272.0,60271.0,0.076726]
[1728601702239,0.33264527,60272.0,60271.0,0.206726]
[1728601702240,0.12792027,60272.0,60271.0,0.206726]
[1728601702848,0.12792027,60272.0,60271.0,0.272826]
[1728601703051,0.101,60272.0,60271.0,0.272826]
[1728601706653,0.101,60272.0,60271.0,0.142826]
[1728601707853,0.101,60272.0,60271.0,0.109626]
[1728601708649,0.101,60272.0,60271.0,0.14275322]
[1728601709556,0.101,60272.0,60271.0,0.50355322]
[1728601710848,0.101,60272.0,60271.0,0.437526]
[1728601716558,0.305725,60272.0,60271.0,0.437526]
[1728601716755,0.33264287,60272.0,60271.0,0.437526]
[1728601717545,0.46264287,60272.0,60271.0,0.002]
[1728601717757,0.07473,60268.0,60267.0,0.07473]
[1728601717953,0.31473,60268.0,60267.0,0.07473]
[1728601718148,0.4412287,60268.0,60267.0,0.07473]
[1728601718550,0.34164787,60268.0,60267.0,0.07473]
[1728601718845,0.31473,60268.0,60267.0,0.07573]
[1728601719651,0.31473,60268.0,60267.0,0.07673]
[1728601719856,0.31673,60268.0,60267.0,0.07673]
[1728601725870,0.39971374,60268.0,60267.0,0.07673]
[1728601732270,0.34365213,60268.0,60267.0,0.07673]
[1728601733973,0.31673,60268.0,60267.0,0.07673]
[1728601737677,0.074733,60265.0,60260.0,0.04948194]
[1728601737978,0.074733,60265.0,60258.0,0.00248899]
[1728601737979,0.074741,60259.0,60258.0,0.00248899]
[1728601738170,0.174741,60259.0,60258.0,0.00248899]
[1728601738674,0.174741,60259.0,60258.0,0.07723099]
[1728601739067,0.1,60259.0,60258.0,0.07723099]
[1728601739376,0.74,60260.0,60259.0,0.074741]
[1728601739568,0.74,60260.0,60259.0,0.204741]
[1728601740083,0.131,60265.0,60264.0,0.074734]
[1728601740270,0.231,60265.0,60264.0,0.074734]
[1728601740579,0.97,60265.0,60264.0,0.074734]
[1728601741169,0.97,60265.0,60264.0,0.075734]
[1728601741371,0.973,60265.0,60264.0,0.075734]
[1728601741964,0.977,60265.0,60264.0,0.076734]
[1728601742874,1.00122279,60265.0,60264.0,0.076734]
[1728601743070,1.07595579,60265.0,60264.0,0.076734]
[1728601743574,0.074737,60262.0,60261.0,0.074737]
[1728601743777,0.324737,60262.0,60261.0,0.074737]
[1728601744976,0.256,60262.0,60261.0,0.076737]
[1728601748981,0.28292497,60262.0,60261.0,0.076737]
[1728601749884,0.256,60262.0,60261.0,0.076737]
[1728601750281,0.28292485,60262.0,60261.0,0.076737]
[1728601751981,0.33895586,60262.0,60261.0,0.076737]
[1728601752676,0.20895586,60262.0,60261.0,0.076737]
[1728601752887,0.256,60262.0,60261.0,0.076737]
[1728601761694,0.460737,60262.0,60261.0,0.0515336]
[1728601762088,0.330737,60262.0,60261.0,0.0515336]
[1728601762405,1.070737,60262.0,60261.0,0.0515336]
[1728601762591,0.330737,60262.0,60261.0,0.0515336]
[1728601762896,0.460737,60262.0,60261.0,0.0515336]
[1728601763289,0.330737,60262.0,60261.0,0.0515336]
[1728601764086,0.330737,60262.0,60261.0,0.002]
[1728601764087,0.35766196,60262.0,60261.0,0.002]
[1728601764784,0.48766196,60262.0,60261.0,0.002]
[1728601764986,0.074741,60259.0,60258.0,0.00248899]
[1728601765195,0.33166596,60259.0,60258.0,0.00248899]
[1728601766399,0.79207668,60259.0,60258.0,0.00248899]
[1728601766599,0.69246596,60259.0,60258.0,0.00248899]
[1728601767098,0.69646596,60259.0,60258.0,0.00248899]
[1728601767493,0.34066596,60259.0,60258.0,0.00348899]
[1728601767693,0.70146596,60259.0,60258.0,0.00348899]
[1728601767896,0.62672496,60259.0,60253.0,0.078648]
[1728601768093,0.13,60254.0,60253.0,0.078648]
[1728601768299,0.26692496,60254.0,60253.0,0.074748]
[1728601768686,0.26692496,60254.0,60253.0,0.070748]
[1728601768687,0.34167196,60254.0,60253.0,0.070748]
[1728601769091,0.39773822,60254.0,60253.0,0.066748]
[1728601769291,0.3416747,60254.0,60253.0,0.066748]
[1728601769601,0.314747,60254.0,60253.0,0.062748]
[1728601769795,0.19297955,60254.0,60253.0,0.062748]
[1728601770004,0.11,60254.0,60253.0,0.189748]
[1728601770696,0.002,60254.0,60253.0,0.189748]
[1728601770899,0.002,60254.0,60253.0,0.2723816]
[1728601771092,0.002,60254.0,60253.0,0.222848]
[1728601783811,0.002,60254.0,60253.0,0.583648]
[1728601786317,0.002,60254.0,60253.0,0.6496832]
[1728601793431,0.0039,60261.0,60253.0,0.6496832]
[1728601793733,0.0039,60264.0,60263.0,0.074736]
[1728601793924,0.204731,60267.0,60266.0,0.074732]
[1728601794123,0.314731,60267.0,60266.0,0.074732]
[1728601795229,0.314731,60267.0,60266.0,0.075732]
[1728601795429,0.318731,60267.0,60266.0,0.075732]
[1728601796730,0.322731,60267.0,60266.0,0.076732]
[1728601799433,0.322731,60267.0,60266.0,0.12623126]
[1728601800530,0.192731,60267.0,60266.0,0.12623126]
[1728601800735,0.322731,60267.0,60266.0,0.12623126]
[1728601801339,0.34965396,60267.0,60266.0,0.076732]
[1728601801534,0.14492235,60267.0,60266.0,0.076732]
[1728601801839,0.27492235,60267.0,60266.0,0.076732]
[1728601802530,0.248,60267.0,60266.0,0.076732]
[1728601803633,0.118,60267.0,60266.0,0.076732]
[1728601803829,0.008,60267.0,60266.0,0.12623126]
[1728601804137,0.008,60267.0,60266.0,0.076732]
[1728601804435,0.008,60267.0,60266.0,0.12623351]
[1728601804736,0.008,60267.0,60266.0,0.076732]
[1728601807431,0.008,60267.0,60266.0,0.12619661]
[1728601808341,0.008,60267.0,60266.0,0.076732]
[1728601808640,0.008,60267.0,60266.0,0.14267991]
[1728601813542,0.0039,60273.0,60266.0,0.704532]
[1728601813748,0.0039,60276.0,60275.0,0.074721]
[1728601814042,0.0313,60279.0,60275.0,0.074721]
[1728601814043,0.0313,60279.0,60278.0,0.074717]
[1728601814251,0.0313,60279.0,60278.0,0.204717]
[1728601814947,0.1313,60279.0,60278.0,0.204717]
[1728601815854,0.1353,60279.0,60278.0,0.205717]
[1728601816850,0.1353,60279.0,60278.0,0.206717]
[1728601818144,0.1353,60279.0,60278.0,0.076717]
[1728601818345,0.210016,60279.0,60278.0,0.076717]
[1728601818952,0.1353,60279.0,60278.0,0.076717]
[1728601824652,0.104,60279.0,60278.0,0.076717]
[1728601830955,0.004,60279.0,60278.0,0.437517]
[1728601832258,0.004,60279.0,60278.0,0.436517]
[1728601832462,0.0039,60286.0,60285.0,0.074708]
[1728601832758,0.13,60292.0,60291.0,0.074701]
[1728601832759,0.15439572,60292.0,60291.0,0.074701]
[1728601832958,0.26439572,60292.0,60291.0,0.074701]
[1728601833358,0.13439572,60292.0,60291.0,0.074701]
[1728601833564,0.15439572,60292.0,60291.0,0.074701]
[1728601834263,0.15439572,60292.0,60291.0,0.075701]
[1728601835158,0.3608,60293.0,60291.0,0.001]
[1728601835159,0.4908,60293.0,60291.0,0.001]
[1728601835357,0.4908,60293.0,60292.0,0.0747]
[1728601835558,0.38502782,60293.0,60292.0,0.0747]
[1728601835759,0.0328,60295.0,60292.0,0.0747]
[1728601835965,0.0328,60295.0,60294.0,0.074697]
[1728601836262,0.1628,60295.0,60294.0,0.074697]
[1728601836960,0.18785238,60295.0,60294.0,0.074697]
[1728601837957,0.18785238,60295.0,60294.0,0.075697]
[1728601838364,0.21476299,60295.0,60294.0,0.076697]
[1728601841266,0.05196299,60295.0,60294.0,0.206697]
[1728601841768,0.05196299,60295.0,60294.0,0.076697]
[1728601842960,0.02691061,60295.0,60294.0,0.076697]
[1728601843362,0.09961072,60298.0,60297.0,0.074694]
[1728601843558,0.22443424,60298.0,60297.0,0.074694]
[1728601843760,0.15173243,60298.0,60297.0,0.074694]
[1728601844468,0.15173243,60298.0,60297.0,0.075694]
[1728601846055,0.15173243,60298.0,60297.0,0.076694]
[1728601846459,0.32951552,60298.0,60297.0,0.002]
[1728601846657,0.32951552,60298.0,60285.0,0.0045]
[1728601846658,0.77253293,60298.0,60285.0,0.0045]
[1728601846857,0.074707,60286.0,60285.0,0.074707]
[1728601848268,0.074707,60286.0,60285.0,0.075707]
[1728601849363,0.074707,60286.0,60285.0,0.076707]
[1728601851864,0.184707,60286.0,60285.0,0.076707]
[1728601852262,0.314707,60286.0,60285.0,0.002]
[1728601852666,0.074717,60278.0,60277.0,0.074717]
[1728601852865,0.074717,60278.0,60275.0,0.0039]
[1728601852866,0.074721,60275.0,60274.0,0.3608]
[1728601853060,0.074722,60274.0,60273.0,0.074722]
[1728601854169,0.075722,60274.0,60273.0,0.074722]
[1728601855673,0.075722,60274.0,60271.0,0.00248855]
[1728601855674,0.251,60274.0,60271.0,0.00248855]
[1728601855975,0.251,60274.0,60266.0,0.074732]
[1728601855976,0.074732,60267.0,60266.0,0.074732]
[1728601856176,0.204732,60267.0,60266.0,0.074732]
[1728601856366,0.264732,60267.0,60266.0,0.074732]
[1728601856974,0.364732,60267.0,60266.0,0.074732]
[1728601857565,0.074736,60264.0,60259.0,0.3647]
[1728601857770,0.074736,60264.0,60260.0,0.074739]
[1728601857771,0.19,60261.0,60260.0,0.074739]
[1728601858873,0.19,60261.0,60260.0,0.084739]
[1728601860779,0.19,60263.0,60262.0,0.074737]
[1728601860970,0.31,60263.0,60262.0,0.074737]
[1728601862183,0.31,60263.0,60262.0,0.082737]
[1728601862878,0.31,60263.0,60262.0,0.087737]
[1728601865679,0.384736,60263.0,60262.0,0.087737]
[1728601867182,0.384736,60263.0,60262.0,0.013]
[1728601868285,0.384736,60263.0,60262.0,0.087737]
[1728601872085,0.31,60263.0,60262.0,0.087737]
[1728601878489,0.25,60263.0,60262.0,0.087737]
[1728601883496,0.25,60263.0,60262.0,0.13722016]
[1728601883794,0.25,60263.0,60262.0,0.087737]
[1728601887493,0.25,60263.0,60262.0,0.15364502]
[1728601888696,0.25,60263.0,60262.0,0.087737]
[1728601888900,0.00084,60267.0,60266.0,0.074732]
[1728601889201,0.4908,60271.0,60270.0,0.074727]
[1728601889397,0.4908,60271.0,60270.0,0.12424049]
[1728601889398,0.6008,60271.0,60270.0,0.12424049]
[1728601889898,0.4908,60271.0,60270.0,0.074727]
[1728601890889,0.13,60271.0,60270.0,0.074727]
[1728601891094,0.02403785,60275.0,60274.0,0.074722]
[1728601891303,0.24,60275.0,60274.0,0.12420339]
[1728601891607,0.26691835,60275.0,60274.0,0.074722]
[1728601891795,0.13,60275.0,60274.0,0.074722]
[1728601892104,0.13248923,60277.0,60276.0,0.07472]
[1728601892300,0.00248923,60277.0,60276.0,0.07472]
[1728601892697,0.13,60280.0,60279.0,0.074716]
[1728601892898,0.13,60280.0,60279.0,0.435516]
[1728601893805,0.204715,60280.0,60279.0,0.435516]
[1728601894395,0.206715,60280.0,60279.0,0.436516]
[1728601895399,0.206715,60280.0,60279.0,0.437516]
[1728601895702,0.206715,60280.0,60279.0,0.076716]
[1728601897599,0.132,60280.0,60279.0,0.076716]
[1728601898100,0.002,60280.0,60279.0,0.076716]
[1728601898310,0.002,60280.0,60279.0,0.206716]
[1728601899911,0.002,60280.0,60279.0,0.25619739]
[1728601900504,0.002,60280.0,60279.0,1.364396]
[1728601902515,0.002,60280.0,60279.0,1.41364131]
[1728601903215,0.002,60280.0,60279.0,1.43854344]